fUST/lending_fUST_20251001
["ID","MTS","AMOUNT","RATE_DAILY","PERIOD"]
[388715377,1759332644806,-502.00263187,0.00019721,2]
[388715378,1759332644815,-503.8024159,0.00019721,2]
[388715379,1759332644824,-500.0,0.00019721,2]
[388715380,1759332644834,-501.97120374,0.00019721,2]
[388715381,1759332644843,-500.0,0.00019721,2]
[388715382,1759332644851,-1000.0,0.00019721,2]
[388715383,1759332644861,-1000.0,0.00019721,2]
[388715384,1759332644870,-440.0,0.00019726,2]
[388715385,1759332644880,-440.0,0.00019726,2]
[388715386,1759332644890,-440.0,0.00019726,2]
[388715387,1759332644900,-500.0,0.00019726,2]
[388715388,1759332644909,-440.0,0.00019726,2]
[388715389,1759332644919,-541.82,0.00019726,2]
[388715390,1759332644928,-500.0,0.00019726,2]
[388715391,1759332644937,-500.0,0.00019726,2]
[388715392,1759332644947,-440.0,0.00019726,2]
[388715393,1759332644955,-500.0,0.00019726,2]
[388715394,1759332644964,-440.0,0.00019726,2]
[388715395,1759332644974,-556.18944259,0.00019726,2]
[388715396,1759332644983,-500.0,0.00019726,2]
[388715397,1759332644992,-500.0,0.00019726,2]
[388715398,1759332645001,-440.0,0.00019726,2]
[388715399,1759332645011,-500.0,0.00019726,2]
[388715400,1759332645020,-440.0,0.00019726,2]
[388715401,1759332645030,-440.0,0.00019726,2]
[388715402,1759332645039,-440.0,0.00019726,2]
[388715403,1759332645048,-500.0,0.00019726,2]
[388715404,1759332645057,-500.0,0.00019726,2]
[388715405,1759332645066,-440.0,0.00019726,2]
[388715406,1759332645075,-500.0,0.00019726,2]
[388715407,1759332645085,-500.0,0.00019726,2]
[388715408,1759332645094,-500.0,0.00019726,2]
[388715409,1759332645103,-500.0,0.00019726,2]
[388715410,1759332645113,-500.0,0.00019726,2]
[388715411,1759332645123,-440.0,0.00019726,2]
[388715412,1759332645133,-440.0,0.00019726,2]
[388715413,1759332645142,-151.0,0.00019726,2]
[388715414,1759332645152,-440.0,0.00019726,2]
[388715415,1759332645162,-440.0,0.00019726,2]
[388715416,1759332645174,-500.0,0.00019726,2]
[388715417,1759332645184,-500.0,0.00019726,2]
[388715418,1759332645193,-440.0,0.00019726,2]
[388715419,1759332645203,-440.0,0.00019726,2]
[388715420,1759332645213,-440.0,0.00019726,2]
[388715421,1759332645222,-440.0,0.00019726,2]
[388715422,1759332645232,-500.0,0.00019726,2]
[388715423,1759332645242,-440.0,0.00019726,2]
[388715424,1759332645254,-500.0,0.00019726,2]
[388715425,1759332645264,-500.0,0.00019726,2]
[388715426,1759332645273,-261.04,0.00019726,2]
[388715427,1759332645282,-547.52,0.00019726,2]
[388715428,1759332645291,-487.94,0.00019726,2]
[388715429,1759332645300,-440.0,0.00019726,2]
[388715430,1759332645309,-500.0,0.00019726,2]
[388715431,1759332645319,-500.0,0.00019726,2]
[388715432,1759332645328,-500.0,0.00019726,2]
[388715433,1759332645339,-440.0,0.00019726,2]
[388715434,1759332645348,-500.0,0.00019726,2]
[388715435,1759332645357,-500.0,0.00019726,2]
[388715436,1759332645367,-440.0,0.00019726,2]
[388715437,1759332645378,-440.0,0.00019726,2]
[388715438,1759332645387,-430.16693423,0.00019726,2]
[388715439,1759332645396,-500.0,0.00019726,2]
[388715440,1759332645406,-500.0,0.00019726,2]
[388715441,1759332645414,-500.0,0.00019726,2]
[388715442,1759332645424,-634.47,0.00019726,2]
[388715443,1759332645433,-500.0,0.00019726,2]
[388715444,1759332645442,-500.0,0.00019726,2]
[388715445,1759332645451,-440.0,0.00019726,2]
[388715446,1759332645460,-440.0,0.00019726,2]
[388715447,1759332645470,-500.0,0.00019726,2]
[388715448,1759332645479,-574.96907989,0.00019726,2]
[388715449,1759332645489,-500.0,0.00019726,2]
[388715450,1759332645498,-251.467487,0.00019726,2]
[388715451,1759332645507,-251.467487,0.00019726,2]
[388715452,1759332645622,-440.0,0.00019726,2]
[388715453,1759332645633,-251.467487,0.00019726,2]
[388715454,1759332645642,-251.467487,0.00019726,2]
[388715455,1759332645652,-500.0,0.00019726,2]
[388715456,1759332645662,-1356.49,0.00019726,2]
[388715457,1759332645672,-500.0,0.00019726,2]
[388715458,1759332645682,-446.48,0.00019726,2]
[388715459,1759332645693,-500.0,0.00019726,2]
[388715460,1759332645702,-500.0,0.00019726,2]
[388715461,1759332645716,-500.0,0.00019726,2]
[388715462,1759332645725,-585.43,0.00019726,2]
[388715463,1759332645734,-500.0,0.00019726,2]
[388715464,1759332645744,-500.0,0.00019726,2]
[388715465,1759332645754,-546.8963914,0.00019726,2]
[388715466,1759332645763,-500.0,0.00019726,2]
[388715467,1759332645773,-500.0,0.00019726,2]
[388715468,1759332645782,-500.0,0.00019726,2]
[388715469,1759332645792,-440.0,0.00019726,2]
[388715470,1759332645801,-880.2,0.00019726,2]
[388715471,1759332645811,-499.71694254,0.00019726,2]
[388715472,1759332645821,-500.0,0.00019726,2]
[388715473,1759332645831,-580.57823387,0.00019726,2]
[388715474,1759332645840,-500.0,0.00019726,2]
[388715475,1759332645849,-500.0,0.00019726,2]
[388715476,1759332645858,-500.0,0.00019726,2]
[388715477,1759332645867,-500.0,0.00019726,2]
[388715478,1759332645877,-500.0,0.00019726,2]
[388715479,1759332645887,-402.42,0.00019726,2]
[388715480,1759332645896,-500.0,0.00019726,2]
[388715481,1759332645906,-500.0,0.00019726,2]
[388715482,1759332645915,-500.0,0.00019726,2]
[388715483,1759332645925,-500.0,0.00019726,2]
[388715484,1759332645934,-500.0,0.00019726,2]
[388715485,1759332645943,-678.37,0.00019726,2]
[388715486,1759332645953,-1224.74,0.00019726,2]
[388715487,1759332645962,-500.0,0.00019726,2]
[388715488,1759332645971,-500.0,0.00019726,2]
[388715489,1759332645980,-500.0,0.00019726,2]
[388715490,1759332645990,-195.5377936,0.00019726,2]
[388715491,1759332645999,-635.3,0.00019726,2]
[388715492,1759332646008,-795.07,0.00019726,2]
[388715493,1759332646017,-500.0,0.00019726,2]
[388715494,1759332646026,-460.0,0.00019726,2]
[388715495,1759332646036,-500.0,0.00019726,2]
[388715496,1759332646045,-2005.62,0.00019726,2]
[388715497,1759332646054,-500.0,0.00019726,2]
[388715498,1759332646064,-500.0,0.00019726,2]
[388715499,1759332646073,-326.26,0.00019726,2]
[388715500,1759332646083,-500.0,0.00019726,2]
[388715501,1759332646093,-500.0,0.00019726,2]
[388715502,1759332646102,-500.0,0.00019726,2]
[388715503,1759332646112,-2621.9,0.00019726,2]
[388715504,1759332646124,-500.0,0.00019726,2]
[388715505,1759332646133,-500.0,0.00019726,2]
[388715506,1759332646143,-457.23,0.00019726,2]
[388715507,1759332646152,-500.0,0.00019726,2]
[388715508,1759332646162,-500.0,0.00019726,2]
[388715509,1759332646175,-500.0,0.00019726,2]
[388715510,1759332646186,-500.0,0.00019726,2]
[388715511,1759332646195,-439.68758031,0.00019726,2]
[388715512,1759332646205,-579.64,0.00019726,2]
[388715513,1759332646215,-500.0,0.00019726,2]
[388715514,1759332646225,-783.82,0.00019726,2]
[388715515,1759332646234,-500.0,0.00019726,2]
[388715516,1759332646243,-752.54,0.00019726,2]
[388715517,1759332646255,-151.0,0.00019726,2]
[388715518,1759332646264,-640.66,0.00019726,2]
[388715519,1759332646273,-1478.93,0.00019726,2]
[388715520,1759332646283,-500.0,0.00019726,2]
[388715521,1759332646293,-500.0,0.00019726,2]
[388715522,1759332646303,-500.0,0.00019726,2]
[388715523,1759332646312,-483.92,0.00019726,2]
[388715524,1759332646321,-440.0,0.00019726,2]
[388715525,1759332646330,-500.0,0.00019726,2]
[388715526,1759332646340,-500.0,0.00019726,2]
[388715527,1759332646350,-500.0,0.00019726,2]
[388715528,1759332646359,-500.0,0.00019726,2]
[388715529,1759332646369,-500.0,0.00019726,2]
[388715530,1759332646380,-538.94,0.00019726,2]
[388715531,1759332646390,-500.0,0.00019726,2]
[388715532,1759332646400,-500.0,0.00019726,2]
[388715533,1759332646409,-500.0,0.00019726,2]
[388715534,1759332646419,-500.0,0.00019726,2]
[388715535,1759332646428,-500.0,0.00019726,2]
[388715536,1759332646438,-500.0,0.00019726,2]
[388715537,1759332646447,-500.0,0.00019726,2]
[388715538,1759332646457,-371.23,0.00019726,2]
[388715539,1759332646467,-500.0,0.00019726,2]
[388715540,1759332646476,-500.0,0.00019726,2]
[388715541,1759332646486,-151.0,0.00019726,2]
[388715542,1759332646495,-500.0,0.00019726,2]
[388715543,1759332646505,-151.10690839,0.00019726,2]
[388715544,1759332646514,-500.0,0.00019726,2]
[388715545,1759332646524,-500.0,0.00019726,2]
[388715546,1759332646533,-500.0,0.00019726,2]
[388715547,1759332646543,-1202.65,0.00019726,2]
[388715548,1759332646552,-616.14,0.00019726,2]
[388715549,1759332646562,-500.0,0.00019726,2]
[388715551,1759332646572,-500.0,0.00019726,2]
[388715553,1759332646582,-500.0,0.00019726,2]
[388715554,1759332646591,-500.0,0.00019726,2]
[388715555,1759332646600,-500.0,0.00019726,2]
[388715556,1759332646609,-500.0,0.00019726,2]
[388715557,1759332646619,-500.0,0.00019726,2]
[388715558,1759332646632,-500.0,0.00019726,2]
[388715559,1759332646642,-556.73,0.00019726,2]
[388715560,1759332646653,-500.0,0.00019726,2]
[388715561,1759332646663,-500.0,0.00019726,2]
[388715562,1759332646673,-500.0,0.00019726,2]
[388715563,1759332646683,-500.0,0.00019726,2]
[388715564,1759332646693,-894.32,0.00019726,2]
[388715565,1759332646704,-365.21,0.00019726,2]
[388715566,1759332646713,-500.0,0.00019726,2]
[388715567,1759332646723,-3359.82,0.00019726,2]
[388715568,1759332646732,-711.44,0.00019726,2]
[388715569,1759332646741,-500.0,0.00019726,2]
[388715571,1759332646751,-151.0,0.00019726,2]
[388715572,1759332646760,-151.0,0.00019726,2]
[388715573,1759332646769,-500.0,0.00019726,2]
[388715574,1759332646778,-500.0,0.00019726,2]
[388715575,1759332646786,-500.0,0.00019726,2]
[388715576,1759332646795,-578.05,0.00019726,2]
[388715577,1759332646804,-500.0,0.00019726,2]
[388715578,1759332646813,-840.59,0.00019726,2]
[388715579,1759332646822,-493.28,0.00019726,2]
[388715580,1759332646831,-500.0,0.00019726,2]
[388715581,1759332646840,-355.38,0.00019726,2]
[388715582,1759332646849,-440.0,0.00019726,2]
[388715583,1759332646858,-567.93,0.00019726,2]
[388715584,1759332646867,-500.0,0.00019726,2]
[388715586,1759332646879,-500.0,0.00019726,2]
[388715588,1759332646888,-500.0,0.00019726,2]
[388715589,1759332646897,-324.82415666,0.00019726,2]
[388715590,1759332646907,-500.0,0.00019726,2]
[388715591,1759332646916,-500.0,0.00019726,2]
[388715592,1759332646926,-500.0,0.00019726,2]
[388715593,1759332646935,-151.0,0.00019726,2]
[388715594,1759332646945,-2529.05,0.00019726,2]
[388715595,1759332646955,-151.0,0.00019726,2]
[388715596,1759332646965,-500.0,0.00019726,2]
[388715597,1759332646974,-531.38,0.00019726,2]
[388715598,1759332646984,-222.45531,0.00019726,2]
[388715600,1759332646994,-500.0,0.00019726,2]
[388715601,1759332647006,-500.0,0.00019726,2]
[388715602,1759332647016,-500.0,0.00019726,2]
[388715603,1759332647027,-500.0,0.00019726,2]
[388715604,1759332647037,-500.0,0.00019753,2]
[388715605,1759332647046,-1375.19942352,0.00019887,2]
[388715606,1759332647056,-2248.25198309,0.00019946,2]
[388715607,1759332647065,-166.0,0.00019967,2]
[388715608,1759332647074,-38876.80489714,0.00019975,2]
[388715609,1759332647188,-725.70739596,0.00019975,2]
[388715610,1759332647199,-8066.67231325,0.00019975,2]
[388715611,1759332647211,-4631.53812291,0.00019975,2]
[388715612,1759332647220,-160.0,0.00019997,2]
[388715613,1759332647231,-173.972,0.0002,2]
[388715614,1759332647241,-500.0,0.0002,2]
[388715615,1759332647250,-500.0,0.0002,2]
[388715616,1759332647259,-246.75,0.0002,2]
[388715617,1759332647269,-500.0,0.0002,2]
[388715618,1759332647278,-500.0,0.0002,2]
[388715619,1759332647287,-139.66031653,0.0002,2]
[388715620,1759332647636,-539.9479731,0.00019178,2]
[388715621,1759332647646,-290.78628018,0.0002,2]
[388715622,1759332647655,-267.3,0.0002,2]
[388715623,1759332647664,-500.0,0.0002,2]
[388715624,1759332647674,-500.0,0.0002,2]
[388715625,1759332647683,-500.0,0.0002,2]
[388715626,1759332647692,-500.0,0.0002,2]
[388715627,1759332647702,-500.0,0.0002,2]
[388715628,1759332647711,-392.97,0.0002,2]
[388715629,1759332647720,-500.0,0.0002,2]
[388715630,1759332647729,-338.28,0.0002,2]
[388715631,1759332647738,-500.0,0.0002,2]
[388715632,1759332647747,-344.72054768,0.0002,2]
[388715633,1759332647757,-500.0,0.0002,2]
[388715634,1759332647766,-420.0,0.0002,2]
[388715635,1759332647776,-343.45,0.0002,2]
[388715636,1759332647786,-500.0,0.0002,2]
[388715637,1759332647796,-500.0,0.0002,2]
[388715638,1759332647806,-500.0,0.0002,2]
[388715639,1759332647816,-197.58,0.0002,2]
[388715640,1759332647827,-500.0,0.0002,2]
[388715641,1759332647836,-500.0,0.0002,2]
[388715642,1759332647847,-500.0,0.0002,2]
[388715643,1759332647857,-634.47,0.0002,2]
[388715644,1759332647867,-500.0,0.0002,2]
[388715645,1759332647878,-500.0,0.0002,2]
[388715646,1759332647888,-500.0,0.0002,2]
[388715647,1759332647898,-500.0,0.0002,2]
[388715648,1759332647907,-500.0,0.0002,2]
[388715649,1759332647917,-1356.49,0.0002,2]
[388715650,1759332647926,-500.0,0.0002,2]
[388715651,1759332647935,-500.0,0.0002,2]
[388715652,1759332647945,-500.0,0.0002,2]
[388715653,1759332647955,-210.06,0.0002,2]
[388715654,1759332647965,-585.43,0.0002,2]
[388715655,1759332647975,-208.81,0.0002,2]
[388715656,1759332647985,-209.35,0.0002,2]
[388715657,1759332647995,-500.0,0.0002,2]
[388715658,1759332648004,-500.0,0.0002,2]
[388715659,1759332648013,-500.0,0.0002,2]
[388715660,1759332648024,-880.2,0.0002,2]
[388715661,1759332648033,-500.0,0.0002,2]
[388715662,1759332648043,-500.0,0.0002,2]
[388715663,1759332648053,-542.61,0.0002,2]
[388715664,1759332648063,-500.0,0.0002,2]
[388715665,1759332648073,-524.97,0.0002,2]
[388715666,1759332648083,-500.0,0.0002,2]
[388715667,1759332648093,-264.51,0.0002,2]
[388715668,1759332648102,-500.0,0.0002,2]
[388715669,1759332648112,-500.0,0.0002,2]
[388715670,1759332648122,-500.0,0.0002,2]
[388715671,1759332648134,-500.0,0.0002,2]
[388715672,1759332648144,-678.37,0.0002,2]
[388715673,1759332648154,-1224.74,0.0002,2]
[388715674,1759332648163,-500.0,0.0002,2]
[388715675,1759332648282,-500.0,0.0002,2]
[388715676,1759332648294,-440.0,0.0002,2]
[388715677,1759332648304,-635.3,0.0002,2]
[388715678,1759332648314,-795.07,0.0002,2]
[388715679,1759332648325,-500.0,0.0002,2]
[388715680,1759332648335,-500.0,0.0002,2]
[388715681,1759332648345,-2005.62,0.0002,2]
[388715682,1759332648355,-500.0,0.0002,2]
[388715683,1759332648365,-500.0,0.0002,2]
[388715684,1759332648374,-500.0,0.0002,2]
[388715685,1759332648385,-500.0,0.0002,2]
[388715686,1759332648396,-500.0,0.0002,2]
[388715687,1759332648406,-2621.9,0.0002,2]
[388715688,1759332648417,-500.0,0.0002,2]
[388715689,1759332648427,-185.66,0.0002,2]
[388715690,1759332648436,-314.14,0.0002,2]
[388715691,1759332648446,-391.2,0.0002,2]
[388715692,1759332648457,-500.0,0.0002,2]
[388715693,1759332648467,-500.0,0.0002,2]
[388715694,1759332648478,-500.0,0.0002,2]
[388715695,1759332648488,-783.82,0.0002,2]
[388715696,1759332648499,-500.0,0.0002,2]
[388715697,1759332648509,-752.54,0.0002,2]
[388715698,1759332648520,-151.0,0.0002,2]
[388715699,1759332648531,-640.66,0.0002,2]
[388715700,1759332648541,-1478.93,0.0002,2]
[388715701,1759332648552,-500.0,0.0002,2]
[388715702,1759332648562,-500.0,0.0002,2]
[388715703,1759332648574,-500.0,0.0002,2]
[388715704,1759332648585,-500.0,0.0002,2]
[388715705,1759332648596,-500.0,0.0002,2]
[388715706,1759332648606,-459.35,0.0002,2]
[388715707,1759332648616,-500.0,0.0002,2]
[388715708,1759332648626,-500.0,0.0002,2]
[388715709,1759332648636,-538.94,0.0002,2]
[388715710,1759332648647,-500.0,0.0002,2]
[388715711,1759332648657,-500.0,0.0002,2]
[388715712,1759332648666,-500.0,0.0002,2]
[388715713,1759332648676,-500.0,0.0002,2]
[388715714,1759332648686,-500.0,0.0002,2]
[388715715,1759332648697,-344.56,0.0002,2]
[388715716,1759332648707,-207.8725228,0.0002,2]
[388715717,1759332648716,-500.0,0.0002,2]
[388715718,1759332648726,-14504.82197442,0.0002,2]
[388715719,1759332648736,-500.0,0.0002,2]
[388715720,1759332648746,-400.0,0.0002,2]
[388715721,1759332648755,-500.0,0.0002,2]
[388715722,1759332648765,-317.52573316,0.0002,2]
[388715723,1759332648940,-590.77,0.00019178,2]
[388715724,1759332648950,-589.27,0.00019178,2]
[388715725,1759332648959,-590.77,0.00019452,2]
[388715726,1759332648969,-565.74843208,0.00019726,2]
[388715727,1759332648984,-25.02156792,0.00019726,2]
[388715728,1759332648994,-182.47426684,0.0002,2]
[388715729,1759332649003,-500.0,0.0002,2]
[388715730,1759332649013,-500.0,0.0002,2]
[388715731,1759332649022,-1202.65,0.0002,2]
[388715732,1759332649032,-616.14,0.0002,2]
[388715733,1759332649042,-500.0,0.0002,2]
[388715734,1759332649052,-187.01,0.0002,2]
[388715735,1759332649061,-500.0,0.0002,2]
[388715736,1759332649070,-500.0,0.0002,2]
[388715737,1759332649079,-500.0,0.0002,2]
[388715738,1759332649088,-500.0,0.0002,2]
[388715739,1759332649097,-500.0,0.0002,2]
[388715740,1759332649107,-500.0,0.0002,2]
[388715741,1759332649116,-556.73,0.0002,2]
[388715742,1759332649125,-500.0,0.0002,2]
[388715743,1759332649135,-500.0,0.0002,2]
[388715744,1759332649144,-500.0,0.0002,2]
[388715745,1759332649154,-480.0,0.0002,2]
[388715746,1759332649163,-894.32,0.0002,2]
[388715747,1759332649176,-500.0,0.0002,2]
[388715748,1759332649186,-3359.82,0.0002,2]
[388715749,1759332649195,-711.44,0.0002,2]
[388715750,1759332649204,-500.0,0.0002,2]
[388715751,1759332649215,-151.0,0.0002,2]
[388715752,1759332649224,-151.0,0.0002,2]
[388715753,1759332649234,-21.60461524,0.0002,2]
[388715754,1759332649247,-478.39538476,0.0002,2]
[388715755,1759332649257,-500.0,0.0002,2]
[388715756,1759332649267,-234.84557328,0.0002,2]
[388715757,1759332649702,-959.66,0.00019178,2]
[388715758,1759332649711,-959.66,0.00019452,2]
[388715759,1759332649721,-959.66,0.00019726,2]
[388715760,1759332649730,-265.15442672,0.0002,2]
[388715761,1759332649739,-578.05,0.0002,2]
[388715762,1759332649748,-333.7,0.0002,2]
[388715763,1759332649757,-840.59,0.0002,2]
[388715764,1759332649766,-500.0,0.0002,2]
[388715765,1759332649775,-567.93,0.0002,2]
[388715766,1759332649784,-4000.0,0.0002,4]
[388715767,1759332649794,-500.0,0.0002,2]
[388715768,1759332649803,-500.0,0.0002,2]
[388715769,1759332649812,-500.0,0.0002,2]
[388715770,1759332649821,-500.0,0.0002,2]
[388715771,1759332649830,-248.97,0.0002,2]
[388715772,1759332649839,-362.27692462,0.0002,2]
[388715773,1759332649848,-500.0,0.0002,2]
[388715774,1759332649857,-2529.05,0.0002,2]
[388715775,1759332649867,-410.22,0.0002,2]
[388715776,1759332649876,-151.0,0.0002,2]
[388715777,1759332649886,-500.0,0.0002,2]
[388715778,1759332649896,-500.0,0.0002,2]
[388715779,1759332649905,-500.0,0.0002,2]
[388715780,1759332649915,-500.0,0.0002,2]
[388715781,1759332649924,-590.77,0.0002,2]
[388715782,1759332649933,-959.66,0.0002,2]
[388715783,1759332649942,-501.58958607,0.00020021,2]
[388715784,1759332649951,-500.0,0.00020021,2]
[388715785,1759332649960,-441.50036854,0.00020021,2]
[388715786,1759332649969,-1000.0,0.00020021,2]
[388715787,1759332649979,-500.0,0.00020021,2]
[388715788,1759332649989,-524.21163721,0.00020021,2]
[388715789,1759332649998,-500.0,0.00020021,2]
[388715790,1759332650007,-1000.0,0.00020021,2]
[388715791,1759332650017,-1000.0,0.00020021,2]
[388715792,1759332650026,-500.0,0.00020021,2]
[388715793,1759332650035,-1000.0,0.00020021,2]
[388715794,1759332650044,-1000.0,0.00020021,2]
[388715795,1759332650053,-1000.0,0.00020021,2]
[388715796,1759332650062,-1000.0,0.00020021,2]
[388715797,1759332650071,-500.0,0.00020021,2]
[388715798,1759332650080,-501.68996385,0.00020021,2]
[388715799,1759332650089,-1000.0,0.00020021,2]
[388715800,1759332650100,-1000.0,0.00020021,2]
[388715801,1759332650110,-1000.0,0.00020021,2]
[388715802,1759332650119,-312.78243408,0.00020021,2]
[388715803,1759332650129,-1000.0,0.00020021,2]
[388715804,1759332650138,-505.33770531,0.00020021,2]
[388715805,1759332650147,-1000.0,0.00020021,2]
[388715806,1759332650157,-251.467487,0.00020021,2]
[388715807,1759332650166,-251.467487,0.00020021,2]
[388715808,1759332650180,-251.467487,0.00020021,2]
[388715809,1759332650189,-251.467487,0.00020021,2]
[388715810,1759332650198,-151.0,0.00020021,2]
[388715811,1759332650207,-151.0,0.00020021,2]
[388715812,1759332650219,-1375.19942352,0.00020091,2]
[388715813,1759332650228,-673.59190662,0.00020224,2]
[388715814,1759332650237,-1002.43559663,0.00020268,2]
[388715815,1759332650247,-1500.0,0.00020268,2]
[388715816,1759332650257,-500.0,0.00020273,2]
[388715817,1759332650266,-627.57,0.00020273,2]
[388715818,1759332650276,-258.87,0.00020273,2]
[388715819,1759332650286,-500.0,0.00020273,2]
[388715820,1759332650295,-500.0,0.00020273,2]
[388715821,1759332650305,-500.0,0.00020273,2]
[388715822,1759332650313,-500.0,0.00020273,2]
[388715823,1759332650323,-500.0,0.00020273,2]
[388715824,1759332650332,-616.28,0.00020273,2]
[388715825,1759332650342,-500.0,0.00020273,2]
[388715826,1759332650351,-500.0,0.00020273,2]
[388715827,1759332650361,-362.56,0.00020273,2]
[388715828,1759332650370,-603.21995297,0.00020273,2]
[388715829,1759332650379,-375.52,0.00020273,2]
[388715830,1759332650388,-266.59575535,0.00020273,2]
[388715831,1759332650397,-493.84,0.00020273,2]
[388715832,1759332650406,-500.0,0.00020273,2]
[388715833,1759332650415,-475.08,0.00020273,2]
[388715834,1759332650425,-634.47,0.00020273,2]
[388715835,1759332650434,-500.0,0.00020273,2]
[388715836,1759332650444,-500.0,0.00020273,2]
[388715837,1759332650453,-383.6,0.00020273,2]
[388715838,1759332650463,-500.0,0.00020273,2]
[388715839,1759332650473,-585.8,0.00020273,2]
[388715840,1759332650482,-500.0,0.00020273,2]
[388715841,1759332650492,-1356.49,0.00020273,2]
[388715842,1759332650501,-500.0,0.00020273,2]
[388715843,1759332650511,-500.0,0.00020273,2]
[388715844,1759332650520,-616.14,0.00020273,2]
[388715845,1759332650530,-149.36764164,0.00020273,2]
[388715846,1759332650543,-436.06235836,0.00020273,2]
[388715847,1759332650552,-465.97,0.00020273,2]
[388715848,1759332650561,-322.3,0.00020273,2]
[388715849,1759332650571,-279.16,0.00020273,2]
[388715850,1759332650581,-880.2,0.00020273,2]
[388715851,1759332650590,-500.0,0.00020273,2]
[388715852,1759332650599,-272.48,0.00020273,2]
[388715853,1759332650608,-248.58,0.00020273,2]
[388715854,1759332650617,-500.0,0.00020273,2]
[388715855,1759332650627,-500.0,0.00020273,2]
[388715856,1759332650635,-375.24,0.00020273,2]
[388715857,1759332650645,-500.0,0.00020273,2]
[388715858,1759332650654,-593.25,0.00020273,2]
[388715859,1759332650663,-678.37,0.00020273,2]
[388715860,1759332650672,-389.2,0.00020273,2]
[388715861,1759332650682,-500.0,0.00020273,2]
[388715862,1759332650692,-635.3,0.00020273,2]
[388715863,1759332650801,-500.0,0.00020273,2]
[388715864,1759332650812,-515.74,0.00020273,2]
[388715865,1759332650822,-2005.62,0.00020273,2]
[388715866,1759332650831,-500.0,0.00020273,2]
[388715867,1759332650840,-568.27,0.00020273,2]
[388715868,1759332650849,-500.0,0.00020273,2]
[388715869,1759332650859,-448.57205522,0.00020273,2]
[388715870,1759332650868,-500.0,0.00020273,2]
[388715871,1759332650878,-2621.9,0.00020273,2]
[388715872,1759332650887,-500.0,0.00020273,2]
[388715873,1759332650896,-500.0,0.00020273,2]
[388715874,1759332650906,-500.0,0.00020273,2]
[388715875,1759332650917,-500.0,0.00020273,2]
[388715876,1759332650927,-783.82,0.00020273,2]
[388715877,1759332650937,-500.0,0.00020273,2]
[388715878,1759332650947,-752.54,0.00020273,2]
[388715879,1759332650957,-286.417008,0.00020273,2]
[388715880,1759332650966,-640.66,0.00020273,2]
[388715881,1759332650975,-1478.93,0.00020273,2]
[388715882,1759332650985,-500.0,0.00020273,2]